bitfinex-derivatives/quotes_SOLF0:USTF0_20250626
["timestamp","ask_amount","ask_price","bid_price","bid_amount"]
[1750957522095,9.3055,142.93,142.9,6.9954]
[1750957522288,2.3111,142.93,142.91,6.9946]
[1750957523699,9.3052,142.93,142.91,6.9946]
[1750957524793,9.3052,142.93,142.9,6.9953]
[1750957525098,2.3111,142.93,142.87,4.52356026]
[1750957525495,632.5528,142.96,142.89,4.52356026]
[1750957525701,632.5528,142.96,142.9,4.52356026]
[1750957525892,2.4728,142.96,142.91,6.9946]
[1750957526089,6.9939,142.94,142.9,4.52356026]
[1750957526593,6.9933,142.95,142.92,6.9942]
[1750957527100,6.9944,142.93,142.9,42.7952]
[1750957527399,2.4728,142.96,142.9,35.8]
[1750957527797,2.4728,142.96,142.91,6.9947]
[1750957528003,2.4728,142.96,142.9,35.8]
[1750957528205,6.9944,142.93,142.9,42.7952]
[1750957528401,2.4728,142.96,142.9,42.7952]
[1750957528998,4.52356026,142.95,142.87,40.28356026]
[1750957529195,4.52356026,142.94,142.87,35.76]
[1750957529805,6.9948,142.92,142.87,35.76]
[1750957530105,4.52356026,142.94,142.87,35.76]
[1750957530292,6.99636026,142.96,142.9,4.52356026]
[1750957530498,2.4728,142.96,142.9,4.52356026]
[1750957530898,6.9933,142.95,142.92,6.9944]
[1750957531307,6.9935,142.94,142.92,6.9944]
[1750957531604,6.9935,142.94,142.91,6.9948]
[1750957532007,6.9941,142.93,142.9,4.52356026]
[1750957532905,6.9937,142.94,142.91,6.9947]
[1750957533301,2.4728,142.96,142.9,4.52356026]
[1750957533501,2.4728,142.96,142.92,6.994]
[1750957533707,2.4728,142.96,142.9,4.52356026]
[1750957534008,6.9934,142.95,142.92,6.9942]
[1750957534209,6.9934,142.95,142.9,4.52356026]
[1750957534604,6.9934,142.95,142.92,6.994]
[1750957535809,6.9934,142.95,142.93,6.9939]
[1750957536009,6.9936,142.94,142.9,4.52356026]
[1750957536410,21.07,143.1,142.92,4.52356026]
[1750957536619,21.07,143.1,142.88,4.52356026]
[1750957536620,6.9905,143.01,142.97,4.52356026]
[1750957536909,6.9905,143.01,142.99,6.991]
[1750957537109,38.2326,143.04,142.97,4.52356026]
[1750957537312,38.2326,143.04,142.99,4.52356026]
[1750957537500,40.5022,143.08,143.01,4.52356026]
[1750957537912,40.5022,143.08,143.01,11.51336026]
[1750957538116,6.9885,143.05,143.01,11.51336026]
[1750957538415,6.9885,143.05,143.01,6.9898]
[1750957538605,40.5022,143.08,143.0,35.76]
[1750957538801,6.71408539,143.04,142.95,42.47408539]
[1750957539008,35.76,143.03,142.95,35.76]
[1750957539208,6.9918,142.98,142.95,35.76]
[1750957539408,47.32488539,143.03,142.95,35.76]
[1750957540412,6.9918,142.98,142.95,42.7529]
[1750957540810,47.32488539,143.03,142.95,35.76]
[1750957541008,6.71408539,143.01,142.93,2.4791]
[1750957541213,9.06138539,143.0,142.92,665.22]
[1750957541412,9.06138539,143.0,142.93,6.9936]
[1750957541612,9.06138539,143.0,142.92,671.93408539]
[1750957541916,6.9929,142.96,142.93,6.9937]
[1750957542611,9.06138539,143.0,142.92,35.76]
[1750957542819,6.71408539,142.98,142.92,35.76]
[1750957543108,6.71408539,142.96,142.89,35.76]
[1750957543711,6.71408539,142.94,142.86,40.3084]
[1750957543913,6.71408539,142.94,142.86,38.0364]
[1750957544118,9.06208539,142.94,142.86,38.0364]
[1750957544414,9.06208539,142.94,142.87,6.9969]
[1750957544617,6.71408539,142.92,142.86,35.76]
[1750957544916,6.71408539,142.9,142.82,2.4114]
[1750957545221,35.76,142.91,142.8,42.47408539]
[1750957545222,6.9972,142.87,142.8,42.47408539]
[1750957545420,35.76,142.87,142.8,35.76]
[1750957545610,6.71408539,142.86,142.8,35.76]
[1750957545918,6.998,142.85,142.81,6.9995]
[1750957546418,42.47408539,142.87,142.81,6.9995]
[1750957546819,42.47408539,142.87,142.8,7.0002]
[1750957547021,6.71408539,142.85,142.78,629.32]
[1750957547219,6.71408539,142.85,142.8,7.0001]
[1750957547723,6.9987,142.84,142.8,7.0001]
[1750957548623,6.999,142.83,142.8,7.0001]
[1750957548917,6.71408539,142.85,142.79,7.0008]
[1750957549113,6.9992,142.83,142.79,7.0008]
[1750957549821,9.15248539,142.85,142.77,38.1714]
[1750957550312,6.9991,142.83,142.79,7.0006]
[1750957551418,6.9991,142.83,142.8,7.0003]
[1750957552820,6.9995,142.82,142.79,7.0008]
[1750957553017,9.15248539,142.85,142.79,7.0008]
[1750957553412,6.71408539,142.83,142.74,6.71408539]
[1750957553613,35.78,142.82,142.74,35.78]
[1750957553814,6.71408539,142.81,142.74,35.78]
[1750957554518,6.71408539,142.81,142.72,6.71408539]
[1750957554720,6.71408539,142.81,142.71,665.26]
[1750957554916,6.71408539,142.79,142.71,35.78]
[1750957555117,7.002,142.77,142.73,7.0033]
[1750957555322,35.78,142.78,142.71,35.78]
[1750957555833,7.002,142.77,142.73,7.0038]
[1750957556620,7.0024,142.76,142.73,7.0038]
[1750957557013,35.78,142.78,142.72,7.0042]
[1750957557219,7.0028,142.76,142.71,35.78]
[1750957557523,7.0028,142.76,142.73,7.0038]
[1750957557718,7.0028,142.76,142.71,35.78]
[1750957558127,35.78,142.78,142.71,35.78]
[1750957558328,38.1982,142.78,142.71,42.7846]
[1750957558530,38.1982,142.78,142.71,42.49408539]
[1750957558830,6.71408539,142.76,142.65,6.71408539]
[1750957559128,6.71408539,142.76,142.65,8.97088539]
[1750957559330,38.1982,142.78,142.67,6.71408539]
[1750957559531,44.91228539,142.78,142.68,35.98]
[1750957559826,7.0038,142.74,142.7,7.005]
[1750957560430,44.91228539,142.78,142.69,6.71408539]
[1750957560631,2.4548,142.8,142.73,6.71408539]
[1750957560929,38.3982,142.82,142.75,6.71408539]
[1750957561133,38.3982,142.82,142.73,42.69408539]
[1750957561322,45.11228539,142.82,142.73,42.69408539]
[1750957561522,45.11228539,142.82,142.75,7.0028]
[1750957562130,7.0017,142.78,142.75,7.0028]
[1750957562425,45.11228539,142.82,142.73,35.98]
[1750957562630,2.3178,142.81,142.73,35.98]
[1750957563122,2.3178,142.81,142.74,6.71408539]
[1750957563327,45.11228539,142.82,142.74,2.4174]
[1750957563629,6.71408539,142.79,142.7,35.98]
[1750957563825,7.003,142.75,142.71,7.0044]
[1750957564226,35.98,142.78,142.71,7.0044]
[1750957564829,35.98,142.78,142.7,35.98]
[1750957564830,7.0036,142.74,142.7,42.9851]
[1750957565134,6.71408539,142.77,142.68,6.71408539]
[1750957565538,2.2557,142.76,142.67,35.98]
[1750957565839,2.2557,142.76,142.67,42.69408539]
[1750957566428,7.0042,142.73,142.67,42.69408539]
[1750957566830,7.0044,142.72,142.69,7.0055]
[1750957568034,7.0049,142.71,142.68,7.006]
[1750957568225,2.2557,142.76,142.67,42.69408539]
[1750957569125,7.0042,142.73,142.7,7.005]
[1750957570330,7.0043,142.72,142.7,7.005]
[1750957571129,7.0043,142.72,142.69,13.71958539]
[1750957572227,7.0034,142.74,142.71,7.0048]
[1750957572427,7.0034,142.74,142.69,6.71408539]
[1750957572832,7.0034,142.74,142.71,7.0045]
[1750957574936,7.0029,142.75,142.69,6.71408539]
[1750957575133,35.98,142.78,142.69,6.71408539]
[1750957575335,35.98,142.78,142.71,6.71408539]
[1750957575537,7.0026,142.76,142.73,7.0037]
[1750957576441,7.0021,142.77,142.74,7.0032]
[1750957576835,7.0021,142.77,142.71,42.71408539]
[1750957577035,7.0021,142.77,142.74,7.0028]
[1750957577943,7.0016,142.78,142.73,6.71408539]
[1750957578142,36.0,142.81,142.73,6.71408539]
[1750957578340,7.0011,142.79,142.76,7.002]
[1750957578740,36.0,142.81,142.76,7.002]
[1750957578941,7.0012,142.79,142.76,7.002]
[1750957579142,36.0,142.81,142.76,7.002]
[1750957579642,7.0011,142.79,142.77,7.0018]
[1750957579843,36.0,142.81,142.77,7.0018]
[1750957580443,7.0006,142.8,142.77,7.0018]
[1750957580645,36.0,142.81,142.77,7.0018]
[1750957580836,7.0009,142.79,142.76,7.0021]
[1750957581546,7.0009,142.79,142.73,6.71408539]
[1750957582139,36.0,142.81,142.73,6.71408539]
[1750957582339,36.0,142.81,142.75,6.71408539]
[1750957582545,36.0,142.81,142.75,42.71408539]
[1750957583346,38.2899,142.86,142.79,6.71408539]
[1750957583539,42.71408539,142.89,142.81,6.71408539]
[1750957583744,44.97218539,142.89,142.81,6.71408539]
[1750957583943,6.71408539,142.87,142.8,36.0]
[1750957584346,6.9994,142.83,142.8,43.0001]
[1750957585151,6.71408539,142.87,142.8,36.0]
[1750957585353,38.2581,142.89,142.77,42.71408539]
[1750957585354,6.71408539,142.85,142.77,42.71408539]
[1750957585651,2.3077,142.84,142.77,43.0015]
[1750957585848,2.3077,142.84,142.73,630.18]
[1750957585849,6.71408539,142.83,142.73,636.89408539]
[1750957586052,11.68708539,142.83,142.73,636.89408539]
[1750957586748,7.0011,142.79,142.76,7.0021]
[1750957588239,7.0008,142.8,142.75,6.71408539]
[1750957588847,7.0008,142.8,142.77,7.0016]
[1750957589047,4.973,142.83,142.76,6.71408539]
[1750957589048,7.0001,142.81,142.76,6.71408539]
[1750957589248,7.0001,142.81,142.78,7.0011]
[1750957589449,9.02178539,142.84,142.76,42.91408539]
[1750957589450,2.3077,142.84,142.76,42.91408539]
[1750957589645,40.17372151,142.85,142.8,6.71408539]
[1750957589849,36.2,142.88,142.8,42.91408539]
[1750957590251,36.2,142.88,142.82,6.71408539]
[1750957590458,36.2,142.88,142.84,6.9981]
[1750957590951,6.9967,142.88,142.85,6.9976]
[1750957591159,2.4198,142.9,142.85,6.9976]
[1750957591362,6.9965,142.88,142.84,6.71408539]
[1750957591560,6.9965,142.88,142.86,6.9973]
[1750957592653,6.997,142.87,142.85,6.9977]
[1750957592855,2.4198,142.9,142.84,36.2]
[1750957593260,2.4198,142.9,142.84,43.198]
[1750957593455,9.13388539,142.9,142.81,38.5696]
[1750957593660,9.13388539,142.9,142.82,6.9991]
[1750957593857,6.71408539,142.88,142.81,36.2]
[1750957594060,38.5799,142.87,142.81,36.2]
[1750957594260,38.5799,142.87,142.81,43.1996]
[1750957594461,6.998,142.85,142.81,36.2]
[1750957594857,6.71408539,142.89,142.81,36.2]
[1750957595060,6.9969,142.88,142.82,6.71408539]
[1750957595267,38.6198,142.9,142.82,6.71408539]
[1750957595458,42.80492479,142.9,142.82,6.71408539]
[1750957595763,42.80492479,142.9,142.84,6.9982]
[1750957595961,6.9974,142.87,142.84,6.9982]
[1750957596159,42.80492479,142.9,142.84,6.9982]
[1750957596359,38.6198,142.9,142.84,6.9982]
[1750957597068,6.9974,142.86,142.83,6.9986]
[1750957597367,6.9974,142.86,142.82,6.71408539]
[1750957597766,6.9974,142.86,142.83,6.9988]
[1750957598557,6.998,142.85,142.82,13.71318539]
[1750957598762,6.998,142.85,142.81,36.2]
[1750957598961,6.998,142.85,142.81,42.91408539]
[1750957599562,6.998,142.85,142.83,6.9986]
[1750957600667,6.998,142.85,142.82,6.9992]
[1750957600867,6.998,142.85,142.81,42.91408539]
[1750957601272,6.998,142.85,142.82,6.9991]
[1750957602270,6.998,142.85,142.83,6.9988]
[1750957602772,6.9987,142.84,142.81,36.2]
[1750957603168,6.71408539,142.89,142.81,36.2]
[1750957603375,6.71408539,142.85,142.78,36.18]
[1750957603974,6.71408539,142.83,142.75,36.18]
[1750957604670,4.6496,142.84,142.76,6.71408539]
[1750957604870,2.3705,142.84,142.78,6.71408539]
[1750957605075,6.9993,142.83,142.8,7.0001]
[1750957606172,6.9993,142.83,142.81,6.9998]
[1750957606473,6.9993,142.83,142.79,36.18]
[1750957607066,6.9993,142.83,142.8,7.0001]
[1750957607475,6.9993,142.83,142.79,36.18]
[1750957607671,6.9993,142.83,142.8,6.9999]
[1750957607870,6.9993,142.83,142.79,36.18]
[1750957608079,6.9987,142.84,142.81,6.9996]
[1750957608276,36.18,142.86,142.79,36.18]
[1750957608469,42.89408539,142.89,142.8,6.71408539]
[1750957608774,6.9982,142.85,142.82,6.9991]
[1750957608973,42.89408539,142.89,142.82,6.9991]
[1750957610370,6.9984,142.84,142.82,6.9991]
[1750957611879,6.9984,142.84,142.81,6.9996]
[1750957612476,6.9984,142.84,142.8,6.71408539]
[1750957613565,6.9984,142.84,142.82,6.9994]
[1750957615170,6.9982,142.85,142.82,6.9994]
[1750957615365,42.89408539,142.89,142.83,6.9988]
[1750957615572,36.18,142.89,142.82,6.71408539]
[1750957616176,6.71408539,142.87,142.79,38.6581]
[1750957616776,6.9992,142.83,142.8,7.0001]
[1750957616979,6.71408539,142.87,142.79,2.4781]
[1750957617466,6.71408539,142.85,142.78,36.18]
[1750957617671,2.4968,142.84,142.78,36.18]
[1750957617871,7.0001,142.81,142.78,43.1811]
[1750957618276,7.0001,142.81,142.78,36.18]
[1750957618583,6.9996,142.82,142.79,7.0006]
[1750957619481,36.24,142.88,142.8,6.71408539]
[1750957619780,6.9981,142.85,142.82,6.999]
[1750957620375,6.9985,142.84,142.8,6.71408539]
[1750957621173,6.9985,142.84,142.81,6.9996]
[1750957621575,42.95408539,142.88,142.8,7.0003]
[1750957621882,6.71408539,142.84,142.75,38.5031]
[1750957622076,7.0004,142.8,142.75,38.5031]
[1750957622381,7.0004,142.8,142.77,7.0015]
[1750957623276,7.0009,142.79,142.77,7.0015]
[1750957623478,7.1795,142.83,142.78,7.0013]
[1750957624182,7.0005,142.8,142.78,7.0013]
[1750957625084,7.0009,142.79,142.77,7.0016]
[1750957625780,6.71408539,142.82,142.75,36.24]
[1750957626388,7.0017,142.78,142.75,43.2425]
[1750957626583,6.71408539,142.82,142.75,36.24]
[1750957626789,7.0006,142.8,142.75,36.24]
[1750957627383,7.0006,142.8,142.77,7.0014]
[1750957628485,7.0009,142.79,142.77,7.0014]
[1750957628686,7.1795,142.83,142.76,11.49397162]
[1750957628883,4.49187162,142.82,142.76,7.0021]
[1750957629794,7.0012,142.79,142.76,7.0021]
[1750957629997,4.49187162,142.82,142.76,7.0021]
[1750957630683,7.0016,142.78,142.76,7.0021]
[1750957631492,7.0011,142.79,142.76,7.0021]
[1750957631783,4.49187162,142.82,142.76,7.0021]
[1750957632183,7.0012,142.79,142.76,7.0021]
[1750957632587,7.0018,142.77,142.75,43.2427]
[1750957632793,4.49187162,142.82,142.74,4.49187162]
[1750957633291,7.0023,142.77,142.74,11.49497162]
[1750957633492,40.75187162,142.8,142.73,36.26]
[1750957633993,7.0026,142.76,142.73,36.26]
[1750957634992,7.003,142.75,142.73,36.26]
[1750957635392,7.003,142.75,142.73,43.2636]
[1750957635585,7.0026,142.76,142.73,43.2636]
[1750957635785,7.0026,142.76,142.73,36.26]
[1750957636489,7.0026,142.76,142.74,7.003]
[1750957636690,7.0021,142.77,142.74,7.003]
[1750957637395,40.75187162,142.8,142.74,7.003]
[1750957637794,36.26,142.8,142.73,40.75187162]
[1750957638595,7.0014,142.78,142.75,4.49187162]
[1750957639295,7.0014,142.78,142.76,7.0021]
[1750957640293,7.0014,142.78,142.75,11.49447162]
[1750957640494,36.26,142.8,142.73,36.26]
[1750957640692,40.75187162,142.8,142.73,36.26]
[1750957640894,40.75187162,142.8,142.73,43.2636]
[1750957641094,7.0031,142.75,142.73,43.2636]
[1750957641797,7.0025,142.76,142.73,43.2636]
[1750957642801,7.0028,142.75,142.73,43.2636]
[1750957646600,7.0028,142.75,142.73,36.26]
[1750957646803,7.0033,142.74,142.73,36.26]
[1750957647102,4.49187162,142.76,142.7,36.26]
[1750957647403,7.0035,142.74,142.7,40.75187162]
[1750957647794,7.0031,142.75,142.7,40.75187162]
[1750957648105,40.75187162,142.8,142.72,4.49187162]
[1750957648299,40.75187162,142.8,142.74,4.49187162]
[1750957648300,7.0028,142.75,142.74,4.49187162]
[1750957648607,7.0028,142.75,142.7,36.26]
[1750957648608,7.0028,142.75,142.72,4.49187162]
[1750957648804,7.0028,142.75,142.73,7.0034]
[1750957650200,7.0026,142.76,142.73,7.0034]
[1750957650401,36.26,142.8,142.74,4.49187162]
[1750957650602,40.75187162,142.8,142.72,4.49187162]
[1750957651496,7.0026,142.76,142.73,7.0034]
[1750957651809,4.18558693,142.82,142.74,40.51187162]
[1750957651995,47.69137162,142.83,142.76,4.49187162]
[1750957652300,7.001,142.79,142.77,7.0016]
[1750957653001,7.0006,142.8,142.78,7.0013]
[1750957653395,6.9997,142.82,142.78,4.49187162]
[1750957653600,36.02,142.86,142.8,4.49187162]
[1750957654198,36.02,142.86,142.81,6.9998]
[1750957655094,6.9988,142.84,142.81,6.9998]
[1750957656296,6.999,142.83,142.81,6.9998]
[1750957656491,36.02,142.86,142.8,11.49197162]
[1750957657506,6.9993,142.83,142.8,11.49197162]
[1750957657702,36.02,142.86,142.8,11.49197162]
[1750957658005,7.0001,142.81,142.78,40.51187162]
[1750957658806,7.0004,142.8,142.78,47.51297162]
[1750957659007,7.0004,142.8,142.73,16.4526]
[1750957659008,4.49187162,142.84,142.73,2.4455]
[1750957659307,4.49187162,142.82,142.74,40.51187162]
[1750957659502,7.0018,142.77,142.74,47.51497162]
[1750957660398,7.0024,142.76,142.74,43.0231]
[1750957660598,7.0024,142.76,142.72,2.3426]
[1750957660599,4.49187162,142.76,142.67,36.02]
[1750957660799,4.49187162,142.74,142.67,36.02]
[1750957661205,7.0046,142.72,142.68,7.006]
[1750957661597,7.0057,142.7,142.67,36.02]
[1750957661799,4.49187162,142.73,142.67,36.02]
[1750957662501,4.49187162,142.71,142.67,36.02]
[1750957662899,4.49187162,142.71,142.65,9.3804]
[1750957662900,7.0061,142.69,142.65,9.3804]
[1750957663103,4.49187162,142.71,142.64,47.51997162]
[1750957663299,4.49187162,142.71,142.64,36.02]
[1750957663505,7.0071,142.67,142.64,36.02]
[1750957664903,7.0058,142.69,142.64,36.02]
[1750957665412,36.02,142.73,142.64,42.77024265]
[1750957665604,6.75024265,142.72,142.64,42.77024265]
[1750957667413,6.75024265,142.72,142.65,7.0074]
[1750957667605,6.75024265,142.72,142.64,36.02]
[1750957669804,7.0061,142.69,142.66,7.0071]
[1750957672711,7.0065,142.68,142.65,7.0076]
[1750957673715,7.0065,142.68,142.66,7.0072]
[1750957674208,7.006,142.69,142.66,7.0072]
[1750957675117,7.0063,142.68,142.64,36.02]
[1750957675417,6.75024265,142.72,142.64,36.02]
[1750957675613,7.0086,142.64,142.61,43.0494]
[1750957675917,42.79024265,142.68,142.61,36.04]
[1750957676123,2.2874,142.67,142.61,36.04]
[1750957676422,2.2874,142.67,142.61,43.0497]
[1750957676713,7.0088,142.63,142.61,43.0497]
[1750957676916,7.0088,142.63,142.61,36.04]
[1750957677117,7.0088,142.63,142.6,7.0099]
[1750957677317,7.0085,142.64,142.58,36.04]
[1750957677616,7.0085,142.64,142.61,7.0094]
[1750957678319,7.0087,142.63,142.61,7.0094]
[1750957679111,7.0085,142.64,142.61,7.0094]
[1750957679311,43.45024265,142.66,142.61,7.0094]
[1750957679511,7.0088,142.63,142.61,7.0094]
[1750957679711,36.7,142.66,142.61,7.0094]
[1750957680116,7.0087,142.63,142.61,7.0094]
[1750957681018,7.0083,142.64,142.61,7.0094]
[1750957681409,2.2874,142.67,142.6,6.75024265]
[1750957681611,36.7,142.69,142.62,6.75024265]
[1750957681809,36.7,142.69,142.64,7.0079]
[1750957682408,7.0071,142.67,142.65,7.0076]
[1750957683106,7.0071,142.67,142.64,7.008]
[1750957683819,7.0071,142.67,142.65,7.0077]
[1750957684218,7.0065,142.68,142.62,43.45024265]
[1750957684522,36.7,142.69,142.65,7.0077]
[1750957684716,7.0063,142.68,142.65,7.0077]
[1750957685321,36.7,142.69,142.65,7.0077]
[1750957686014,36.7,142.69,142.64,7.0079]
[1750957686606,7.0073,142.66,142.64,7.0079]
[1750957687421,7.0071,142.67,142.65,7.0076]
[1750957687621,36.7,142.69,142.63,4.50029925]
[1750957687919,36.7,142.69,142.64,7.0079]
[1750957688419,7.0071,142.67,142.64,7.0079]
[1750957688720,36.7,142.69,142.65,4.50029925]
[1750957689117,36.7,142.69,142.65,11.50779925]
[1750957689318,36.7,142.69,142.63,6.80369925]
[1750957689521,7.007,142.67,142.63,6.80369925]
[1750957690023,7.0065,142.68,142.63,4.50029925]
[1750957690222,36.7,142.69,142.66,7.0072]
[1750957690613,36.7,142.69,142.65,4.50029925]
[1750957691112,36.7,142.69,142.65,7.0074]
[1750957691622,36.7,142.69,142.62,36.7]
[1750957691821,4.50029925,142.68,142.62,36.7]
[1750957692012,4.50029925,142.68,142.61,4.50029925]
[1750957692221,7.0079,142.65,142.62,7.0091]
[1750957692721,36.7,142.69,142.63,41.20029925]
[1750957692922,36.7,142.69,142.65,4.50029925]
[1750957693121,7.006,142.69,142.65,4.50029925]
[1750957693424,11.64599925,142.71,142.65,11.50769925]
[1750957693821,11.64599925,142.71,142.66,7.0072]
[1750957694524,11.64599925,142.71,142.67,7.0067]
[1750957694921,7.006,142.69,142.67,7.0067]
[1750957695119,7.1457,142.71,142.65,4.50029925]
[1750957695928,7.0058,142.69,142.67,7.0064]
[1750957696129,7.1457,142.71,142.67,7.0064]
[1750957696329,7.0056,142.7,142.67,7.0064]
[1750957696725,7.0056,142.7,142.65,4.50029925]
[1750957697128,7.0056,142.7,142.67,7.0065]
[1750957697327,11.7565,142.71,142.65,4.50029925]
[1750957697528,7.0049,142.71,142.67,4.50029925]
[1750957697732,7.0049,142.71,142.68,7.0061]
[1750957698435,7.0049,142.71,142.69,7.0057]
[1750957699429,43.7045,142.72,142.69,7.0057]
[1750957699630,41.2402,142.75,142.7,7.0052]
[1750957699823,45.74049925,142.75,142.7,7.0052]
[1750957700023,7.0046,142.72,142.7,7.0052]
[1750957700433,7.0046,142.72,142.69,7.0055]
[1750957700622,7.0049,142.71,142.69,7.0055]
[1750957700828,45.74049925,142.75,142.68,7.006]
[1750957701227,7.0051,142.71,142.68,7.006]
[1750957701637,45.74049925,142.75,142.68,7.006]
[1750957702735,7.0051,142.71,142.68,7.006]
[1750957703237,7.0061,142.69,142.67,41.20029925]
[1750957703536,4.50029925,142.73,142.67,41.20029925]
[1750957703936,4.50029925,142.73,142.67,36.7]
[1750957704137,4.50029925,142.73,142.65,4.50029925]
[1750957704339,7.0061,142.69,142.66,7.0072]
[1750957705240,7.0064,142.68,142.66,7.0072]
[1750957705445,7.0064,142.68,142.65,11.50779925]
[1750957705640,36.7,142.71,142.65,11.50779925]
[1750957705940,7.0066,142.68,142.65,11.50779925]
[1750957706439,36.7,142.71,142.65,11.50779925]
[1750957706440,41.20029925,142.71,142.65,4.50029925]
[1750957706650,4.50029925,142.69,142.63,4.50029925]
[1750957707147,4.50029925,142.69,142.61,46.10159925]
[1750957707435,11.04326342,142.69,142.61,41.20029925]
[1750957707634,2.2679,142.68,142.61,41.20029925]
[1750957707827,7.0085,142.64,142.61,48.20979925]
[1750957709433,7.0085,142.64,142.62,7.009]
[1750957709635,7.008,142.65,142.62,7.009]
[1750957710343,7.008,142.65,142.63,7.0087]
[1750957712049,2.3302,142.69,142.63,4.50029925]
[1750957712246,2.4488,142.7,142.65,4.50029925]
[1750957712441,36.7,142.71,142.65,4.50029925]
[1750957712744,7.0061,142.69,142.65,4.50029925]
[1750957713047,7.0061,142.69,142.67,7.0065]
[1750957714041,36.7,142.71,142.65,4.50029925]
[1750957714635,7.0065,142.68,142.65,11.50759925]
[1750957715147,7.0065,142.68,142.66,7.0071]
[1750957717741,7.006,142.69,142.66,7.0071]
[1750957717942,41.20029925,142.71,142.66,7.0071]
[1750957718849,41.20029925,142.71,142.65,11.50779925]
[1750957719144,41.20029925,142.71,142.65,4.50029925]
[1750957719346,41.20029925,142.71,142.63,4.50029925]
[1750957719550,7.0072,142.67,142.64,7.0079]
[1750957719746,4.50029925,142.69,142.61,41.20029925]
[1750957720150,7.0081,142.65,142.62,7.0089]
[1750957720445,4.50029925,142.67,142.61,36.7]
[1750957720651,9.35679925,142.67,142.61,43.7097]
[1750957720846,7.0086,142.64,142.61,43.7097]
[1750957721044,45.91679925,142.67,142.61,36.7]
[1750957721239,45.91679925,142.67,142.62,7.0088]
[1750957721938,7.0087,142.63,142.61,43.7095]
[1750957722539,7.0087,142.63,142.61,36.7]
[1750957723352,7.0092,142.62,142.61,36.7]
[1750957723555,4.50029925,142.65,142.58,36.56]
[1750957724153,7.0099,142.61,142.58,43.5708]
[1750957724852,7.0099,142.61,142.59,7.0106]
[1750957725154,7.0099,142.61,142.58,36.56]
[1750957725450,4.50029925,142.65,142.56,4.50029925]
[1750957725844,7.0105,142.6,142.57,7.0113]
[1750957726248,7.0111,142.59,142.55,43.5726]
[1750957726552,4.50029925,142.61,142.55,43.5726]
[1750957726946,7.011,142.59,142.55,43.5726]
[1750957727354,4.50029925,142.61,142.55,43.5726]
[1750957727854,4.50029925,142.61,142.52,124.2538624]
[1750957728057,4.7311,142.6,142.52,41.06029925]
[1750957728249,4.50029925,142.59,142.52,41.06029925]
[1750957728852,7.0121,142.57,142.53,7.0132]
[1750957729660,7.0121,142.57,142.54,7.0131]
[1750957730761,7.0114,142.58,142.55,7.0126]
[1750957731058,4.50029925,142.59,142.52,41.06029925]
[1750957731256,7.0119,142.57,142.54,7.0129]
[1750957732459,7.0114,142.58,142.54,4.50029925]
[1750957732948,4.7311,142.6,142.54,4.50029925]
[1750957733144,14.0115,142.7,142.56,4.50029925]
[1750957733345,11.37383266,142.68,142.62,4.50029925]
[1750957733649,7.0088,142.63,142.61,4.50029925]
[1750957735563,7.0092,142.62,142.61,4.50029925]
[1750957735861,4.50029925,142.67,142.57,36.56]
[1750957736062,7.0095,142.62,142.6,4.50029925]
[1750957736859,7.0097,142.61,142.6,4.50029925]
[1750957737059,4.50029925,142.67,142.6,4.50029925]
[1750957737469,7.0094,142.62,142.6,4.50029925]
[1750957738364,7.009,142.63,142.6,11.51039925]
[1750957738958,7.0085,142.64,142.62,4.50029925]
[1750957739463,4.50029925,142.67,142.6,4.50029925]
[1750957740058,7.0095,142.62,142.6,4.50029925]
[1750957740459,4.50029925,142.67,142.6,4.50029925]
[1750957740664,7.0097,142.61,142.6,4.50029925]